bitfinex-derivatives/quotes_SOLF0:USTF0_20220104
["timestamp","ask_amount","ask_price","bid_price","bid_amount"]
[1641299132631,2.90526905,170.48,170.44,1.22202583]
[1641299133928,2.90526905,170.48,170.43,18.38859249]
[1641299134129,15.29386154,170.48,170.43,6.0]
[1641299134829,12.38859249,170.47,170.43,6.0]
[1641299135729,2.90526905,170.47,170.44,1.22361318]
[1641299136832,2.90526905,170.48,170.44,1.22361318]
[1641299142035,12.38859249,170.49,170.44,1.22361318]
[1641299142236,47.5677,170.51,170.44,13.61220567]
[1641299142836,2.90617275,170.5,170.44,13.61220567]
[1641299143434,27.66479,170.49,170.44,13.61220567]
[1641299144235,2.90617275,170.48,170.44,13.61220567]
[1641299144435,2.90617275,170.48,170.44,1.22361318]
[1641299148838,15.29476524,170.48,170.44,1.22361318]
[1641299149438,2.90617275,170.48,170.43,6.0]
[1641299152042,4.11913267,170.46,170.43,6.0]
[1641299152241,10.02413267,170.46,170.43,6.0]
[1641299152941,5.905,170.46,170.43,10.11913267]
[1641299153645,4.11913267,170.47,170.43,37.78392267]
[1641299154144,4.11913267,170.48,170.44,5.33941296]
[1641299154744,47.5677,170.51,170.43,33.66479]
[1641299154944,4.11892559,170.47,170.43,37.78371559]
[1641299155644,2.89866491,170.5,170.43,33.66479]
[1641299156544,2.89866491,170.5,170.44,4.11876429]
[1641299156745,4.11876429,170.48,170.44,5.33905723]
[1641299157345,2.89866491,170.5,170.43,33.66479]
[1641299157546,4.1300585,170.46,170.43,33.66479]
[1641299158146,15.2872574,170.5,170.43,33.66479]
[1641299158346,4.12990771,170.47,170.44,1.22368105]
[1641299158950,59.95629249,170.51,170.43,46.05338249]
[1641299160351,4.12984217,170.47,170.44,1.22369416]
[1641299160951,59.95629249,170.51,170.43,46.05338249]
[1641299161849,4.1297294,170.47,170.44,1.22371671]
[1641299162049,15.29460518,170.5,170.44,1.22371671]
[1641299162449,2.90601269,170.5,170.43,33.66479]
[1641299162652,12.38769603,170.53,170.45,12.38859249]
[1641299162849,12.38769603,170.53,170.45,18.00759249]
[1641299163151,11.64769603,170.53,170.46,5.85943222]
[1641299163551,13.40506629,170.54,170.46,5.85943222]
[1641299163750,2.90515771,170.52,170.46,7.08356324]
[1641299163952,2.90515771,170.52,170.51,27.66479]
[1641299164451,32.46327544,170.58,170.51,27.66479]
[1641299165753,32.46327544,170.58,170.51,21.05877389]
[1641299166854,32.46327544,170.59,170.51,21.05877389]
[1641299167455,32.46327544,170.59,170.49,27.66479]
[1641299167657,5.579,170.59,170.52,1.22467103]
[1641299167857,27.66479,170.54,170.52,1.22467103]
[1641299168058,32.70279,170.54,170.52,1.22467103]
[1641299168459,32.70279,170.54,170.47,1.22467103]
[1641299168659,5.038,170.54,170.47,1.22467103]
[1641299169260,2.90455366,170.53,170.45,7.2429035]
[1641299169962,2.90455366,170.53,170.49,27.66479]
[1641299170161,13.40291026,170.54,170.49,27.66479]
[1641299172964,13.40291026,170.54,170.47,4.244]
[1641299173864,41.06770026,170.54,170.47,4.244]
[1641299174066,41.06770026,170.54,170.48,1.22448925]
[1641299174666,30.56934366,170.54,170.47,4.244]
[1641299174867,2.90455366,170.53,170.47,4.244]
[1641299175468,2.90455366,170.53,170.45,5.85960389]
[1641299177869,2.90455366,170.53,170.47,27.66479]
[1641299178872,13.40438788,170.53,170.47,27.66479]
[1641299181177,13.40438788,170.53,170.48,1.22461505]
[1641299183676,13.40438788,170.53,170.48,5.69161505]
[1641299184479,13.40438788,170.53,170.48,4.467]
[1641299185278,2.90455366,170.53,170.48,4.467]
[1641299185480,2.90455366,170.54,170.49,1.22469847]
[1641299195492,2.90455366,170.54,170.49,7.08292928]
[1641299195893,12.34746354,170.57,170.49,7.08292928]
[1641299196093,12.34746354,170.57,170.53,27.66479]
[1641299196295,12.34746354,170.58,170.53,33.95579]
[1641299197094,12.34746354,170.58,170.53,39.95579]
[1641299197494,12.34746354,170.59,170.53,39.95579]
[1641299197894,12.34746354,170.59,170.56,5.85582948]
[1641299198198,12.34406709,170.62,170.58,27.66479]
[1641299198397,12.34406709,170.62,170.58,32.72679]
[1641299199296,27.66479,170.64,170.58,32.72679]
[1641299200497,27.66479,170.64,170.58,27.66479]
[1641299201098,10.45721159,170.63,170.58,27.66479]
[1641299202601,41.7774,170.65,170.58,27.66479]
[1641299202801,41.7774,170.65,170.58,32.32579]
[1641299204004,10.45496534,170.64,170.58,32.32579]
[1641299204402,10.45496534,170.64,170.58,4.661]
[1641299204602,10.45496534,170.64,170.54,41.6675]
[1641299206405,42.91824078,170.64,170.59,5.85480094]
[1641299206605,42.91824078,170.64,170.59,11.99180094]
[1641299206804,42.91824078,170.64,170.59,69.34180094]
[1641299207004,32.46327544,170.64,170.59,69.34180094]
[1641299207204,4.078e-05,170.64,170.59,69.34180094]
[1641299207405,49.46096254,170.7,170.59,69.34180094]
[1641299207604,92.03746254,170.74,170.59,69.34180094]
[1641299207804,92.03746254,170.74,170.6,42.0308]
[1641299208005,92.03746254,170.74,170.63,5.8532588]
[1641299208205,92.03746254,170.74,170.67,27.66479]
[1641299208406,92.03746254,170.74,170.67,34.06979]
[1641299208607,49.46096254,170.74,170.67,34.06979]
[1641299209006,40.9049,170.78,170.67,34.06979]
[1641299210411,40.9049,170.78,170.67,27.66479]
[1641299210610,3.30002705,170.77,170.67,27.66479]
[1641299210810,23.31657009,170.77,170.67,27.66479]
[1641299211412,3.30002705,170.76,170.67,27.66479]
[1641299212213,27.66479,170.75,170.67,27.66479]
[1641299212415,40.9479,170.74,170.67,27.66479]
[1641299212815,40.9479,170.74,170.65,27.66479]
[1641299215820,40.9479,170.74,170.65,36.44479]
[1641299216417,40.9479,170.74,170.65,27.66479]
[1641299218319,27.66479,170.72,170.65,27.66479]
[1641299219019,40.9479,170.74,170.65,27.66479]
[1641299222527,4.12527896,170.68,170.67,4.12527896]
[1641299223624,40.9479,170.74,170.67,4.12527896]
[1641299224326,27.66479,170.72,170.67,4.12527896]
[1641299225327,40.9479,170.74,170.67,4.12527896]
[1641299226331,4.12653384,170.68,170.67,4.12527896]
[1641299227233,40.9479,170.74,170.67,10.12527896]
[1641299227933,4.12650981,170.68,170.67,10.12527896]
[1641299228633,9.52120354,170.73,170.67,10.12527896]
[1641299228634,12.37952974,170.71,170.67,10.12527896]
[1641299229133,9.52120354,170.73,170.67,10.12527896]
[1641299230236,4.12272119,170.69,170.67,10.12527896]
[1641299230435,4.12272119,170.69,170.68,27.66479]
[1641299230633,4.12272119,170.69,170.68,33.38279]
[1641299231035,12.36816358,170.73,170.68,37.50806896]
[1641299231635,4.12255719,170.69,170.68,37.50806896]
[1641299232638,12.36816358,170.73,170.68,37.50806896]
[1641299233141,12.36816358,170.73,170.69,4.12527896]
[1641299233342,4.12243474,170.7,170.69,4.12527896]
[1641299234040,12.36816358,170.74,170.68,37.50806896]
[1641299235142,4.12229521,170.7,170.69,4.12527896]
[1641299236444,12.36816358,170.74,170.69,4.12527896]
[1641299237044,12.36816358,170.75,170.69,1.58647799]
[1641299240648,12.36816358,170.75,170.71,27.66479]
[1641299244550,12.36816358,170.75,170.68,27.66479]
[1641299244952,12.36816358,170.75,170.69,1.62347916]
[1641299245151,12.36816358,170.75,170.69,8.26347916]
[1641299245652,12.36816358,170.75,170.69,6.64]
[1641299246556,12.36816358,170.74,170.69,6.64]
[1641299247355,12.36816358,170.75,170.69,6.64]
[1641299248656,14.90388631,170.76,170.71,27.66479]
[1641299251561,2.53572273,170.76,170.71,27.66479]
[1641299252661,2.53572273,170.76,170.68,27.66479]
[1641299253161,12.36816358,170.75,170.68,27.66479]
[1641299253962,12.36816358,170.74,170.68,27.66479]
[1641299256565,12.36816358,170.74,170.67,6.0]
[1641299256766,55.32958,170.69,170.64,12.37952974]
[1641299257165,55.32958,170.69,170.68,6.0]
[1641299257566,55.32958,170.69,170.61,1.62146364]
[1641299258570,55.32958,170.69,170.6,14.00099338]
[1641299258772,27.66479,170.64,170.6,1.62146364]
[1641299259471,21.06119783,170.64,170.6,1.62146364]
[1641299260474,21.06119783,170.64,170.6,14.00099338]
[1641299262377,62.57346358,170.68,170.6,14.00099338]
[1641299262775,62.57346358,170.68,170.6,41.66578338]
[1641299263376,62.57346358,170.68,170.61,1.62146364]
[1641299266078,12.36816358,170.67,170.61,1.62146364]
[1641299266679,62.57346358,170.68,170.61,1.62146364]
[1641299268080,62.57346358,170.68,170.61,7.62146364]
[1641299269380,12.36816358,170.67,170.62,1.62146364]
[1641299269880,50.2053,170.68,170.61,6.0]
[1641299270682,27.66479,170.65,170.61,6.0]
[1641299275089,54.9623,170.68,170.61,6.0]
[1641299275890,50.2053,170.68,170.61,6.0]
[1641299276992,14.93038051,170.67,170.62,1.56519583]
[1641299282002,2.56221693,170.67,170.62,1.56519583]
[1641299285005,27.66479,170.66,170.62,1.56519583]
[1641299286009,2.56221693,170.65,170.62,1.56519583]
[1641299291021,27.66479,170.63,170.62,1.56519583]
[1641299291723,30.22700693,170.63,170.62,1.56519583]
[1641299291921,2.56221693,170.63,170.62,1.56519583]
[1641299292422,2.56221693,170.65,170.62,1.56519583]
[1641299292622,2.56221693,170.65,170.62,6.43019583]
[1641299293325,2.56221693,170.65,170.62,4.865]
[1641299293924,2.56221693,170.65,170.54,33.01207848]
[1641299294124,5.85960389,170.64,170.54,33.01207848]
[1641299294724,33.01207848,170.63,170.53,1.4535945]
[1641299295125,27.66479,170.57,170.53,1.4535945]
[1641299295726,27.66479,170.57,170.52,1.4535945]
[1641299296727,2.56221693,170.56,170.55,4.12859933]
[1641299296926,2.56221693,170.56,170.55,10.45959933]
[1641299297526,27.66479,170.6,170.55,6.331]
[1641299297732,27.66479,170.6,170.55,7.7845945]
[1641299297927,27.66479,170.6,170.55,1.4535945]
[1641299298529,2.67448461,170.59,170.57,4.12821479]
[1641299300030,2.67448461,170.59,170.56,4.12821479]
[1641299304734,2.67448461,170.59,170.56,10.12821479]
[1641299305134,27.66479,170.57,170.56,6.0]
[1641299305735,27.66479,170.57,170.56,7.4535945]
[1641299307237,27.66479,170.6,170.56,7.4535945]
[1641299308440,27.66479,170.6,170.57,5.58177138]
[1641299308642,2.67443911,170.59,170.57,5.58177138]
[1641299309244,2.67443911,170.59,170.58,4.12817688]
[1641299310046,27.66479,170.6,170.58,4.12817688]
[1641299311448,2.67422658,170.59,170.58,4.12817688]
[1641299312147,2.67422658,170.59,170.57,5.58177138]
[1641299312950,2.67422658,170.59,170.56,10.12817688]
[1641299314049,6.76822658,170.59,170.56,7.688e-05]
[1641299314948,2.67422658,170.58,170.52,1.4164791]
[1641299315751,12.65991572,170.59,170.52,1.4164791]
[1641299315951,27.66479,170.55,170.52,1.4164791]
[1641299316952,2.67422658,170.54,170.52,1.4164791]
[1641299318456,27.66479,170.55,170.52,1.4164791]
[1641299319455,21.05862318,170.55,170.52,1.4164791]
[1641299319858,21.05862318,170.55,170.52,11.6074791]
[1641299320059,21.05862318,170.55,170.52,10.191]
[1641299320459,21.05862318,170.55,170.53,1.35713098]
[1641299324859,2.77201939,170.54,170.53,1.35713098]
[1641299325761,21.05862318,170.55,170.52,6.0]
[1641299328063,48.72341318,170.55,170.52,6.0]
[1641299329464,21.05862318,170.55,170.52,6.0]
[1641299329665,61.36879995,170.58,170.52,6.0]
[1641299329865,12.38719995,170.58,170.52,6.0]
[1641299330666,27.66479,170.59,170.52,6.0]
[1641299331469,2.76452108,170.58,170.52,6.0]
[1641299332173,27.66479,170.55,170.52,6.0]
[1641299332379,27.66479,170.55,170.53,1.35710924]
[1641299332573,27.66479,170.55,170.53,7.27310924]
[1641299333874,12.38719995,170.58,170.54,1.35710924]
[1641299334876,2.77151062,170.58,170.54,1.35710924]
[1641299337579,15.15871057,170.58,170.53,1.35710924]
[1641299338279,27.66479,170.55,170.53,1.35710924]
[1641299341586,2.77207198,170.54,170.53,1.35710924]
[1641299342284,2.77207198,170.54,170.52,6.0]
[1641299343487,2.77207198,170.54,170.53,1.35709411]
[1641299344086,27.66479,170.55,170.53,1.35709411]
[1641299344687,61.12279995,170.57,170.53,1.35709411]
[1641299344886,48.7356,170.57,170.53,1.35709411]
[1641299345688,2.77164199,170.56,170.53,1.35709411]
[1641299346388,27.66479,170.54,170.53,1.35709411]
[1641299347191,30.43643199,170.54,170.53,1.35709411]
[1641299347690,27.66479,170.54,170.53,1.35709411]
[1641299350191,27.66479,170.54,170.52,6.0]
[1641299351295,33.92779,170.54,170.52,6.0]
[1641299351993,2.76946493,170.53,170.52,6.0]
[1641299355196,27.66479,170.54,170.52,6.0]
[1641299356397,55.32958,170.54,170.52,6.0]
[1641299356596,2.76472689,170.53,170.52,6.0]
[1641299365411,55.32958,170.54,170.52,6.0]
[1641299377029,59.44690984,170.54,170.52,6.0]
[1641299379428,4.11732984,170.53,170.52,6.0]
[1641299379628,4.11732984,170.53,170.5,12.83732984]
[1641299380228,55.32958,170.54,170.5,8.72]
[1641299380433,7.82872017,170.53,170.5,8.72]
[1641299381031,5.062,170.53,170.5,8.72]
[1641299381231,4.1209943,170.52,170.5,8.72]
[1641299382232,59.4505743,170.54,170.51,4.12075902]
[1641299382834,4.1209943,170.53,170.5,12.84075902]
[1641299385038,59.4505743,170.54,170.51,4.12075902]
[1641299385641,55.32958,170.54,170.52,4.12075902]
[1641299387041,55.32958,170.54,170.53,4.12075902]
[1641299389546,55.32958,170.54,170.52,4.12075902]
[1641299390652,55.32958,170.54,170.53,4.12075902]
[1641299393363,55.32958,170.54,170.52,4.12075902]
[1641299393560,60.09658,170.54,170.52,4.12075902]
[1641299393959,60.09658,170.54,170.53,4.12075902]
[1641299395058,60.09658,170.54,170.5,14.72]
[1641299395059,60.09658,170.54,170.52,4.12075902]
[1641299398461,60.09658,170.54,170.51,4.12075902]
[1641299398964,60.09658,170.54,170.52,4.12075902]
[1641299400964,60.09658,170.54,170.5,14.72]
[1641299400965,60.09658,170.54,170.51,4.12075902]
[1641299402464,60.09658,170.54,170.52,4.12075902]
[1641299404766,60.09658,170.54,170.53,4.12075902]
[1641299407271,60.09658,170.54,170.53,10.12075902]
[1641299409474,4.767,170.54,170.53,10.12075902]
[1641299409673,61.12279995,170.57,170.53,10.12075902]
[1641299409873,27.66479,170.54,170.53,10.12075902]
[1641299410073,27.66479,170.54,170.53,6.0]
[1641299413779,40.05198995,170.56,170.53,6.0]
[1641299414382,12.38719995,170.56,170.53,6.0]
[1641299417383,12.38719995,170.56,170.53,10.12075902]
[1641299417584,61.12279995,170.57,170.53,10.12075902]
[1641299417985,27.66479,170.56,170.53,10.12075902]
[1641299418585,33.60479,170.56,170.53,10.12075902]
[1641299419085,45.99198995,170.56,170.52,4.12075902]
[1641299419287,45.99198995,170.56,170.52,5.902e-05]
[1641299420085,27.66479,170.53,170.48,12.38719995]
[1641299420287,27.66479,170.53,170.45,8.8]
[1641299420487,51.6756,170.52,170.45,8.8]
[1641299420686,56.5806,170.52,170.45,8.8]
[1641299421087,68.97216605,170.52,170.45,8.8]
[1641299421788,2.74923832,170.51,170.46,1.38136847]
[1641299425191,15.14080437,170.51,170.46,1.38136847]
[1641299427292,2.74923832,170.51,170.46,1.38136847]
[1641299429694,2.74923832,170.51,170.46,7.38136847]
[1641299430596,2.74923832,170.51,170.47,1.38136847]
[1641299430597,15.14080437,170.51,170.47,1.38136847]
[1641299432698,2.74923832,170.51,170.47,1.38136847]
[1641299435599,2.74923832,170.51,170.47,8.12736847]
[1641299436099,33.01207848,170.56,170.47,13.98628574]
[1641299436299,33.01207848,170.56,170.51,33.52250608]
[1641299436499,33.01207848,170.56,170.51,37.61850608]
[1641299436699,7.37717792,170.56,170.51,37.61850608]
[1641299437902,35.04196792,170.63,170.51,37.61850608]
[1641299438303,35.04196792,170.63,170.55,27.66479]
[1641299438503,27.66479,170.63,170.55,32.15779]
[1641299439907,27.66479,170.63,170.55,25.5527613]
[1641299442910,27.66479,170.66,170.59,5.85462955]
[1641299443111,27.66479,170.66,170.59,10.34062955]
[1641299444412,27.66479,170.66,170.59,4.486]
[1641299447818,50.1832,170.7,170.59,4.486]
[1641299448217,50.1832,170.7,170.57,5.85565803]
[1641299448418,50.1832,170.7,170.62,27.66479]
[1641299448621,27.66479,170.71,170.62,27.66479]
[1641299448818,27.66479,170.71,170.62,32.37179]
[1641299449620,27.66479,170.71,170.63,7.81123902]
[1641299459036,27.66479,170.73,170.63,7.81123902]
[1641299459240,51.7317,170.75,170.63,7.81123902]
[1641299459436,51.7317,170.75,170.63,57.04773902]
[1641299459737,33.01239451,170.77,170.63,114.39773902]
[1641299459935,33.01239451,170.77,170.68,5.85154627]
[1641299460135,33.01239451,170.77,170.68,12.11554627]
[1641299460536,33.01239451,170.77,170.69,27.66479]
[1641299461036,36.30980792,170.79,170.69,27.66479]
[1641299461438,36.30980792,170.79,170.68,6.264]
[1641299461639,36.30980792,170.79,170.66,33.01239451]
[1641299461838,8.64501792,170.78,170.66,33.01239451]
[1641299462043,8.64501792,170.78,170.64,5.8530875]
[1641299462639,8.64501792,170.78,170.66,27.66479]
[1641299462839,8.64501792,170.78,170.66,33.12979]
[1641299463242,8.64501792,170.78,170.67,5.8518887]
[1641299463643,27.66479,170.79,170.67,5.8518887]
[1641299464544,27.66479,170.79,170.71,27.66479]
[1641299465344,27.66479,170.79,170.68,50.8074]
[1641299465544,31.91079,170.79,170.68,50.8074]
[1641299467250,31.91079,170.79,170.68,56.8074]
[1641299467650,31.91079,170.79,170.68,6.0]
[1641299470050,3.3005189,170.78,170.68,6.0]
[1641299470651,27.66479,170.75,170.68,6.0]
[1641299472955,27.66479,170.75,170.71,12.22620403]
[1641299474958,27.66479,170.75,170.72,12.22620403]
[1641299476663,27.66479,170.75,170.71,12.22620403]
[1641299477566,27.66479,170.75,170.7,12.22620403]
[1641299479668,27.66479,170.75,170.74,4.12605159]
[1641299479867,6.035,170.76,170.74,4.12605159]
[1641299480268,2.21143043,170.75,170.74,4.12605159]
[1641299480867,29.87622043,170.75,170.73,4.12605159]
[1641299481568,27.66479,170.75,170.73,4.12605159]
[1641299481769,27.66479,170.75,170.74,4.12605159]
[1641299482270,27.66479,170.75,170.7,12.22620403]
[1641299482470,27.66479,170.75,170.71,12.22620403]
[1641299483772,27.66479,170.75,170.74,4.12581607]
[1641299484576,29.87595029,170.75,170.74,4.12581607]
[1641299485274,27.66479,170.75,170.71,12.22620403]
[1641299485475,31.91779,170.75,170.71,12.22620403]
[1641299489279,4.253,170.75,170.71,12.22620403]
[1641299490481,49.4222,170.77,170.71,12.22620403]
[1641299491284,2.21130939,170.76,170.74,4.12594428]
[1641299492184,27.66479,170.75,170.74,4.12594428]
[1641299492587,29.87609939,170.75,170.74,4.12594428]
[1641299492787,2.21130939,170.75,170.74,4.12594428]
[1641299493888,2.21130939,170.75,170.7,12.22620403]
[1641299494189,27.66479,170.75,170.71,12.22620403]
[1641299495390,31.79043429,170.75,170.71,12.22620403]
[1641299497096,4.12564429,170.75,170.71,12.22620403]
[1641299497294,4.12564429,170.75,170.71,18.22620403]
[1641299497697,4.12564429,170.76,170.72,12.22620403]
[1641299498498,4.12564429,170.76,170.72,14.14099058]
[1641299501304,27.66479,170.78,170.72,14.14099058]
[1641299502502,2.21063365,170.77,170.76,4.12538117]
[1641299503003,27.66479,170.78,170.76,4.12538117]
[1641299503803,2.21067352,170.77,170.76,4.12538117]
[1641299504304,27.66479,170.78,170.76,4.12538117]
[1641299505006,2.2107665,170.77,170.76,4.12538117]
[1641299505608,27.66479,170.78,170.76,4.12538117]
[1641299506208,2.21078726,170.77,170.76,4.12538117]
[1641299507008,59.6399,170.79,170.75,4.12538117]
[1641299507209,27.66479,170.76,170.75,4.12538117]
[1641299507713,29.87560906,170.76,170.75,4.12538117]
[1641299508813,27.66479,170.76,170.75,4.12538117]
[1641299509513,29.87558582,170.76,170.75,4.12538117]
[1641299510416,27.66479,170.76,170.75,4.12538117]
[1641299511315,2.21075218,170.76,170.75,4.12538117]
[1641299512014,2.21071866,170.77,170.75,4.12538117]
[1641299512715,27.66479,170.78,170.75,4.12538117]
[1641299512917,27.66479,170.78,170.76,4.12538117]
[1641299513519,2.21056906,170.77,170.76,6.04016772]
[1641299514316,27.66479,170.78,170.76,6.04016772]
[1641299514817,2.21048839,170.77,170.76,6.04016772]
[1641299515318,2.21048839,170.77,170.76,11.88914707]
[1641299515521,5.8503481,170.91,170.76,11.88914707]
[1641299515718,12.37582801,170.8,170.76,11.88914707]
[1641299516118,5.8503481,170.91,170.76,11.88914707]
[1641299516318,54.6429,170.9,170.76,11.88914707]
[1641299516619,30.63239451,170.84,170.76,11.88914707]
[1641299516820,17.61239451,170.84,170.76,5.84897935]
[1641299517019,54.6429,170.9,170.79,33.01239451]
[1641299517219,54.6429,170.9,170.82,27.66479]
[1641299518022,54.6429,170.9,170.83,7.85623348]
[1641299518221,54.6429,170.9,170.83,13.72423348]
[1641299518821,33.5151381,170.91,170.83,13.72423348]
[1641299519022,26.9185061,170.91,170.83,13.72423348]
[1641299519223,26.9185061,170.91,170.9,4.12287274]
[1641299519923,26.9185061,170.91,170.89,4.12287274]
[1641299520626,26.9185061,170.91,170.88,4.12287274]
[1641299523926,26.9185061,170.91,170.89,4.12287274]
[1641299524826,26.9185061,170.91,170.88,4.12287274]
[1641299525027,53.3211,170.9,170.88,4.12287274]
[1641299525627,31.5765061,170.91,170.88,4.12287274]
[1641299525829,31.5765061,170.91,170.86,4.12287274]
[1641299526228,3.2986444,170.9,170.86,4.12287274]
[1641299527431,27.66479,170.87,170.86,10.12287274]
[1641299527632,34.25279,170.87,170.86,10.12287274]
[1641299527932,34.25279,170.87,170.86,6.0]
[1641299529738,34.25279,170.87,170.8,4.12287274]
[1641299530845,34.25279,170.87,170.79,4.12287274]
[1641299531040,50.4764,170.86,170.79,4.12287274]
[1641299531442,27.66479,170.8,170.79,4.12287274]
[1641299531641,27.66479,170.8,170.74,27.20533127]
[1641299533142,27.66479,170.8,170.74,8.55377188]
[1641299533343,27.66479,170.8,170.72,8.88]
[1641299533542,55.32958,170.8,170.72,8.88]
[1641299534046,55.32958,170.8,170.72,30.2351543]
[1641299534747,109.73518,170.8,170.72,30.2351543]
[1641299534947,109.73518,170.8,170.72,36.2351543]
[1641299535148,82.07039,170.8,170.72,36.2351543]
[1641299537652,82.07039,170.8,170.75,32.99401409]
[1641299540056,82.07039,170.8,170.74,32.99401409]
[1641299541759,54.4056,170.8,170.74,32.99401409]
[1641299541962,4.12426225,170.82,170.74,32.99401409]
[1641299542366,27.66479,170.79,170.74,32.99401409]
[1641299542564,32.40579,170.79,170.74,32.99401409]
[1641299543765,32.40579,170.79,170.75,32.99401409]
[1641299544568,32.40579,170.79,170.74,32.99401409]
[1641299545168,27.66479,170.79,170.75,32.99401409]
[1641299545870,27.66479,170.79,170.76,32.99401409]
[1641299546870,27.66479,170.79,170.77,12.32568994]
[1641299548971,27.66479,170.79,170.76,12.32568994]
[1641299552578,27.66479,170.79,170.77,4.10914538]
[1641299553080,27.66479,170.79,170.78,4.10914538]
[1641299554480,27.66479,170.79,170.75,12.32568994]
[1641299554680,27.66479,170.76,170.75,12.32568994]
[1641299555080,34.28179,170.76,170.75,12.32568994]
[1641299556382,34.28179,170.76,170.73,14.52226428]
[1641299557385,21.66479,170.76,170.73,14.52226428]
[1641299558086,21.66479,170.76,170.73,35.19058843]
[1641299559489,21.66479,170.76,170.73,2.19657434]
[1641299559890,21.66479,170.76,170.74,32.99401409]
[1641299560088,21.66479,170.76,170.74,38.74101409]
[1641299560790,21.66479,170.76,170.75,2.19657434]
[1641299563092,21.66479,170.76,170.74,41.19058843]
[1641299563691,21.66479,170.76,170.75,2.19657434]
[1641299565192,21.66479,170.76,170.75,35.19058843]
[1641299568398,21.66479,170.76,170.75,2.19657434]
[1641299571800,21.66479,170.76,170.75,35.19058843]
[1641299572700,21.66479,170.76,170.75,41.04025207]
[1641299572900,9e-05,170.76,170.75,41.04025207]
[1641299573401,9e-05,170.76,170.75,8.04623798]
[1641299573704,51.9699,170.81,170.75,8.04623798]
[1641299574303,51.9699,170.81,170.75,40.97191933]
[1641299575402,51.9699,170.81,170.76,27.66479]
[1641299576003,51.9699,170.81,170.79,12.34706186]
[1641299576207,27.66479,170.85,170.79,12.34706186]
[1641299576805,1.91892853,170.84,170.83,4.1240761]
[1641299581108,27.66479,170.85,170.83,4.1240761]
[1641299581709,1.91907467,170.84,170.83,4.1240761]
[1641299582208,27.66479,170.85,170.83,4.1240761]
[1641299583110,1.91908326,170.84,170.83,4.1240761]
[1641299584314,27.66479,170.85,170.83,4.1240761]
[1641299585412,1.91909434,170.84,170.83,4.1240761]
[1641299586114,27.66479,170.85,170.83,4.1240761]
[1641299586917,1.9190666,170.84,170.83,4.1240761]
[1641299587316,1.9190666,170.84,170.83,10.1240761]
[1641299587917,27.66479,170.85,170.83,6.0]
[1641299588118,27.66479,170.85,170.83,8.19657434]
[1641299588920,27.66479,170.85,170.83,6.0]
[1641299589119,1.91904698,170.84,170.83,10.12417481]
[1641299589822,27.66479,170.85,170.83,12.32929285]
[1641299590922,27.66479,170.85,170.83,10.12417481]
[1641299591124,7.7725424,170.84,170.78,12.34706186]
[1641299591326,7.7725424,170.84,170.75,32.92568135]
[1641299591525,3.30042318,170.83,170.75,32.92568135]
[1641299591723,55.32958,170.76,170.75,32.92568135]
[1641299591922,59.43458,170.76,170.75,32.92568135]
[1641299592623,59.43458,170.76,170.67,32.92568135]
[1641299593825,27.66479,170.7,170.66,2.1306696]
[1641299595224,25.67094264,170.7,170.67,2.1306696]
[1641299595827,27.66479,170.69,170.67,2.1306696]
[1641299596226,27.66479,170.69,170.68,2.1306696]
[1641299597728,27.66479,170.73,170.68,2.1306696]
[1641299599130,27.66479,170.73,170.69,2.1306696]
[1641299599830,27.66479,170.73,170.7,2.1306696]
[1641299600730,27.66479,170.73,170.71,2.1306696]
[1641299601130,27.66479,170.73,170.67,6.191]
[1641299601630,27.66479,170.73,170.67,12.191]
[1641299604533,27.66479,170.73,170.68,1.96010939]
[1641299608638,27.66479,170.75,170.68,1.96010939]
[1641299609040,47.0342,170.81,170.68,1.96010939]
[1641299610241,27.66479,170.79,170.7,27.66479]
[1641299610644,27.66479,170.79,170.7,33.51616507]
[1641299611345,27.66479,170.79,170.71,9.93810584]
[1641299612243,2.16499031,170.78,170.71,9.93810584]
[1641299617349,2.16499031,170.78,170.71,15.93810584]
[1641299618253,2.16499031,170.78,170.72,1.96010939]
[1641299621757,27.66479,170.79,170.72,1.96010939]
[1641299624064,5.85531516,170.78,170.7,12.311806]
[1641299624261,27.66479,170.79,170.7,12.311806]
[1641299624464,27.66479,170.71,170.7,12.311806]
[1641299625463,27.66479,170.71,170.64,21.251806]
[1641299626063,31.76079,170.71,170.64,8.94]
[1641299627865,31.76079,170.71,170.65,12.311806]
[1641299629465,27.66479,170.71,170.65,12.311806]
[1641299630967,27.66479,170.71,170.64,13.331]
[1641299631170,27.66479,170.71,170.67,32.92568135]